[Event "*** SCC Grand Prix: Titled Tuesday Blitz"]
[Site "Chess.com"]
[Date "2020.09.08"]
[Round "9"]
[White "Firouzja2003"]
[Black "jefferyx"]
[Result "1-0"]
[WhiteElo "3001"]
[BlackElo "2926"]
[TimeControl "180+1"]
[EndTime "11:45:16 PDT"]
[Termination "Firouzja2003 won by resignation"]

1. d4 {[%clk 0:03:00.9]} 1... Nf6 {[%clk 0:02:58.2]} 2. Nf3 {[%clk 0:03:00.5]}
2... g6 {[%clk 0:02:55.1]} 3. g3 {[%clk 0:02:59.2]} 3... Bg7 {[%clk 0:02:55.2]}
4. Bg2 {[%clk 0:02:59.7]} 4... O-O {[%clk 0:02:55.5]} 5. O-O {[%clk 0:03:00.1]}
5... c5 {[%clk 0:02:51.9]} 6. d5 {[%clk 0:02:52.8]} 6... d6 {[%clk 0:02:52.2]}
7. Nc3 {[%clk 0:02:49.6]} 7... Na6 {[%clk 0:02:50.1]} 8. h3 {[%clk 0:02:48.9]}
8... Nc7 {[%clk 0:02:50.3]} 9. a4 {[%clk 0:02:49.1]} 9... b6 {[%clk 0:02:40.9]}
10. e4 {[%clk 0:02:47.9]} 10... Nd7 {[%clk 0:02:41.5]} 11. Bf4 {[%clk
0:02:42.1]} 11... a6 {[%clk 0:02:27.3]} 12. Re1 {[%clk 0:02:40.9]} 12... Ne5
{[%clk 0:02:27.8]} 13. Nxe5 {[%clk 0:02:28.5]} 13... dxe5 {[%clk 0:02:28.7]} 14.
Be3 {[%clk 0:02:23.8]} 14... Qd6 {[%clk 0:02:29.3]} 15. Nb1 {[%clk 0:01:59.7]}
15... Bd7 {[%clk 0:02:27.1]} 16. Nd2 {[%clk 0:01:58.7]} 16... b5 {[%clk
0:02:16.9]} 17. Nb3 {[%clk 0:01:38.5]} 17... c4 {[%clk 0:02:17]} 18. Nc5 {[%clk
0:01:16]} 18... Rfb8 {[%clk 0:02:17]} 19. axb5 {[%clk 0:01:09.4]} 19... axb5
{[%clk 0:02:17.9]} 20. Qe2 {[%clk 0:01:04.9]} 20... Bc8 {[%clk 0:02:17.2]} 21.
b4 {[%clk 0:01:05.1]} 21... cxb3 {[%clk 0:01:33.9]} 22. cxb3 {[%clk 0:01:05.1]}
22... b4 {[%clk 0:01:26.9]} 23. Qc4 {[%clk 0:00:58.8]} 23... e6 {[%clk
0:01:25.6]} 24. Rad1 {[%clk 0:00:53.6]} 24... exd5 {[%clk 0:01:18.8]} 25. exd5
{[%clk 0:00:54.5]} 25... Ba6 {[%clk 0:01:19.5]} 26. Nxa6 {[%clk 0:00:46.9]}
26... Nxa6 {[%clk 0:01:20.4]} 27. Qc6 {[%clk 0:00:43]} 27... Bf8 {[%clk
0:01:20.5]} 28. Rc1 {[%clk 0:00:40.3]} 28... Qd8 {[%clk 0:01:14.3]} 29. d6
{[%clk 0:00:33.5]} 29... Ra7 {[%clk 0:01:08.5]} 30. Bxa7 {[%clk 0:00:33.1]} 1-0

[Event "*** SCC Grand Prix: Titled Tuesday Blitz"]
[Site "Chess.com"]
[Date "2020.09.08"]
[Round "9"]
[White "sodastream007"]
[Black "Vuk2000"]
[Result "1-0"]
[WhiteElo "2574"]
[BlackElo "2715"]
[TimeControl "180+1"]
[EndTime "11:45:17 PDT"]
[Termination "sodastream007 won by resignation"]

1. d4 {[%clk 0:03:00.9]} 1... Nf6 {[%clk 0:02:59.8]} 2. c4 {[%clk 0:03:00.7]}
2... e6 {[%clk 0:02:59.9]} 3. g3 {[%clk 0:02:59]} 3... d5 {[%clk 0:02:59.2]} 4.
Nf3 {[%clk 0:02:58.7]} 4... Be7 {[%clk 0:02:59]} 5. Bg2 {[%clk 0:02:57.7]} 5...
O-O {[%clk 0:02:59]} 6. O-O {[%clk 0:02:57.1]} 6... dxc4 {[%clk 0:02:59.2]} 7.
Qc2 {[%clk 0:02:54.1]} 7... a6 {[%clk 0:02:59.1]} 8. Qxc4 {[%clk 0:02:54.3]}
8... b5 {[%clk 0:02:58.5]} 9. Qc2 {[%clk 0:02:55.2]} 9... Bb7 {[%clk 0:02:56.9]}
10. Bf4 {[%clk 0:02:53.8]} 10... Nc6 {[%clk 0:02:54.9]} 11. Rd1 {[%clk
0:02:46.9]} 11... Nb4 {[%clk 0:02:53.1]} 12. Qc1 {[%clk 0:02:46]} 12... Rc8
{[%clk 0:02:50.9]} 13. Nc3 {[%clk 0:02:44.2]} 13... Nbd5 {[%clk 0:02:43.8]} 14.
Nxd5 {[%clk 0:02:44]} 14... Nxd5 {[%clk 0:02:42.6]} 15. Bg5 {[%clk 0:02:36.9]}
15... h6 {[%clk 0:02:24.6]} 16. Bxe7 {[%clk 0:02:31.9]} 16... Qxe7 {[%clk
0:02:19.5]} 17. Qc5 {[%clk 0:02:28.6]} 17... Qxc5 {[%clk 0:02:17.9]} 18. dxc5
{[%clk 0:02:29.5]} 18... Nf6 {[%clk 0:02:09.2]} 19. Ne5 {[%clk 0:02:28.4]} 19...
Bxg2 {[%clk 0:02:08.3]} 20. Kxg2 {[%clk 0:02:28.8]} 20... Ne4 {[%clk 0:01:56.6]}
21. Nc6 {[%clk 0:02:20.9]} 21... Rfe8 {[%clk 0:01:48.7]} 22. b4 {[%clk
0:02:18.3]} 22... e5 {[%clk 0:01:38.1]} 23. a4 {[%clk 0:02:16]} 23... Nc3 {[%clk
0:01:32.4]} 24. Rd7 {[%clk 0:02:09.8]} 24... bxa4 {[%clk 0:00:49.8]} 25. Ne7+
{[%clk 0:02:06.9]} 25... Rxe7 {[%clk 0:00:49.8]} 26. Rxe7 {[%clk 0:02:07.8]}
26... f6 {[%clk 0:00:47.5]} 27. Ra3 {[%clk 0:02:02.8]} 27... Nd5 {[%clk
0:00:45]} 28. Rd7 {[%clk 0:01:58.8]} 28... Nxb4 {[%clk 0:00:44]} 29. Rxa4 {[%clk
0:01:59.1]} 29... Nc6 {[%clk 0:00:36.8]} 30. Rxa6 {[%clk 0:01:51.9]} 30... Nd4
{[%clk 0:00:31.9]} 31. e3 {[%clk 0:01:48.7]} 31... Nb3 {[%clk 0:00:31.9]} 32.
Rc6 {[%clk 0:01:47.5]} 32... Kf8 {[%clk 0:00:19.6]} 33. Rdxc7 {[%clk 0:01:47.1]}
33... Rb8 {[%clk 0:00:18]} 34. Rb6 {[%clk 0:01:44.8]} 1-0

[Event "*** SCC Grand Prix: Titled Tuesday Blitz"]
[Site "Chess.com"]
[Date "2020.09.08"]
[Round "9"]
[White "Artyom_ChessMate"]
[Black "RaunakSadhwani2005"]
[Result "0-1"]
[WhiteElo "2570"]
[BlackElo "2847"]
[TimeControl "180+1"]
[EndTime "11:45:25 PDT"]
[Termination "RaunakSadhwani2005 won on time"]

1. e4 {[%clk 0:03:00.9]} 1... c6 {[%clk 0:03:00.1]} 2. d4 {[%clk 0:03:00.5]}
2... d5 {[%clk 0:03:01]} 3. exd5 {[%clk 0:03:01.3]} 3... Qxd5 {[%clk 0:03:01.2]}
4. Bd3 {[%clk 0:03:02.2]} 4... Qxg2 {[%clk 0:03:00.9]} 5. Qf3 {[%clk 0:02:53]}
5... Qxf3 {[%clk 0:03:01.1]} 6. Nxf3 {[%clk 0:02:53.9]} 6... Nf6 {[%clk
0:03:01.4]} 7. c3 {[%clk 0:02:51.6]} 7... Bg4 {[%clk 0:03:01.8]} 8. Ne5 {[%clk
0:02:50.7]} 8... Bh5 {[%clk 0:03:02.3]} 9. f4 {[%clk 0:02:48]} 9... Nbd7 {[%clk
0:03:02.4]} 10. Be3 {[%clk 0:02:46.8]} 10... e6 {[%clk 0:03:02.2]} 11. Nd2
{[%clk 0:02:46]} 11... O-O-O {[%clk 0:03:00.8]} 12. Be2 {[%clk 0:02:39.9]} 12...
Bg6 {[%clk 0:02:58.7]} 13. h4 {[%clk 0:02:32.1]} 13... Nxe5 {[%clk 0:02:54]} 14.
fxe5 {[%clk 0:02:30.9]} 14... Nd5 {[%clk 0:02:54.9]} 15. Kf2 {[%clk 0:02:14]}
15... Nxe3 {[%clk 0:02:48.3]} 16. Kxe3 {[%clk 0:02:14.9]} 16... h5 {[%clk
0:02:48.7]} 17. Raf1 {[%clk 0:02:10.6]} 17... Be7 {[%clk 0:02:48.1]} 18. Bd3
{[%clk 0:02:04.2]} 18... Bxd3 {[%clk 0:02:43]} 19. Kxd3 {[%clk 0:02:05.1]} 19...
Rhf8 {[%clk 0:02:43.5]} 20. Ne4 {[%clk 0:01:42.9]} 20... f5 {[%clk 0:02:39.4]}
21. exf6 {[%clk 0:01:41.3]} 21... gxf6 {[%clk 0:02:39.6]} 22. Rhg1 {[%clk
0:01:33.8]} 22... Rg8 {[%clk 0:02:38.8]} 23. Ng3 {[%clk 0:01:28.5]} 23... Rh8
{[%clk 0:02:34.1]} 24. Ne4 {[%clk 0:01:27.7]} 24... Rdg8 {[%clk 0:02:33.9]} 25.
Ke2 {[%clk 0:00:52.4]} 25... f5 {[%clk 0:02:31.4]} 26. Ng5 {[%clk 0:00:52.3]}
26... Rg6 {[%clk 0:02:24.8]} 27. Rg2 {[%clk 0:00:34.7]} 27... Rhg8 {[%clk
0:02:23.5]} 28. Rfg1 {[%clk 0:00:33.1]} 28... Bxg5 {[%clk 0:02:22.5]} 29. Rxg5
{[%clk 0:00:27.2]} 29... Rxg5 {[%clk 0:02:22.4]} 30. hxg5 {[%clk 0:00:23.2]}
30... Kd7 {[%clk 0:02:21.8]} 31. Kf3 {[%clk 0:00:23.6]} 31... Ke7 {[%clk
0:02:20.9]} 32. Kf4 {[%clk 0:00:21]} 32... h4 {[%clk 0:02:21.3]} 33. Rh1 {[%clk
0:00:20.1]} 33... Rh8 {[%clk 0:02:20.6]} 34. c4 {[%clk 0:00:19.2]} 34... Kf7
{[%clk 0:02:15.5]} 35. d5 {[%clk 0:00:18.4]} 35... cxd5 {[%clk 0:02:15.9]} 36.
cxd5 {[%clk 0:00:19.3]} 36... exd5 {[%clk 0:02:16.8]} 37. Kxf5 {[%clk
0:00:19.8]} 37... h3 {[%clk 0:02:17.4]} 38. Rh2 {[%clk 0:00:18.9]} 38... d4
{[%clk 0:02:15.7]} 39. b4 {[%clk 0:00:15.4]} 39... d3 {[%clk 0:02:15.4]} 40. g6+
{[%clk 0:00:04.8]} 40... Kg7 {[%clk 0:02:15.5]} 41. Kg5 {[%clk 0:00:03.9]} 41...
Rh6 {[%clk 0:02:11.9]} 42. Kf5 {[%clk 0:00:01.9]} 42... Rh5+ {[%clk 0:02:11.6]}
43. Kg4 {[%clk 0:00:01.9]} 43... Kxg6 {[%clk 0:02:11.6]} 0-1

[Event "*** SCC Grand Prix: Titled Tuesday Blitz"]
[Site "Chess.com"]
[Date "2020.09.08"]
[Round "9"]
[White "lider34"]
[Black "Zmof"]
[Result "1-0"]
[WhiteElo "2402"]
[BlackElo "2234"]
[TimeControl "180+1"]
[EndTime "11:45:26 PDT"]
[Termination "lider34 won by resignation"]

1. e4 {[%clk 0:03:00.9]} 1... c5 {[%clk 0:02:56.3]} 2. c3 {[%clk 0:02:59.4]}
2... d6 {[%clk 0:02:53]} 3. d4 {[%clk 0:02:58]} 3... Nf6 {[%clk 0:02:53.1]} 4.
Bd3 {[%clk 0:02:57.7]} 4... e5 {[%clk 0:02:53]} 5. Nf3 {[%clk 0:02:55.6]} 5...
Nc6 {[%clk 0:02:52.7]} 6. dxe5 {[%clk 0:02:52.4]} 6... dxe5 {[%clk 0:02:52.2]}
7. h3 {[%clk 0:02:50.4]} 7... Be7 {[%clk 0:02:51.3]} 8. O-O {[%clk 0:02:50.2]}
8... O-O {[%clk 0:02:50.9]} 9. Qe2 {[%clk 0:02:49.7]} 9... h6 {[%clk 0:02:50.5]}
10. Rd1 {[%clk 0:02:48.1]} 10... Qc7 {[%clk 0:02:50.3]} 11. Na3 {[%clk
0:02:44.1]} 11... Be6 {[%clk 0:02:49.6]} 12. Bc4 {[%clk 0:02:39.3]} 12... Bxc4
{[%clk 0:02:48.4]} 13. Nxc4 {[%clk 0:02:39.1]} 13... Rad8 {[%clk 0:02:47.1]} 14.
Bd2 {[%clk 0:02:26.8]} 14... Kh7 {[%clk 0:02:26.9]} 15. a4 {[%clk 0:02:21.9]}
15... g6 {[%clk 0:02:25.2]} 16. Qe3 {[%clk 0:01:58.8]} 16... Ng8 {[%clk
0:02:23.8]} 17. a5 {[%clk 0:01:53.5]} 17... Kg7 {[%clk 0:02:22]} 18. b3 {[%clk
0:01:49.9]} 18... Rd7 {[%clk 0:02:11.6]} 19. a6 {[%clk 0:01:39.2]} 19... b6
{[%clk 0:02:10.7]} 20. Be1 {[%clk 0:01:31.6]} 20... Rfd8 {[%clk 0:02:08.5]} 21.
Qe2 {[%clk 0:01:31.5]} 21... Rxd1 {[%clk 0:02:02.9]} 22. Rxd1 {[%clk 0:01:30.7]}
22... Rxd1 {[%clk 0:02:03.6]} 23. Qxd1 {[%clk 0:01:31]} 23... Nf6 {[%clk
0:02:04.3]} 24. Qd3 {[%clk 0:01:29.2]} 24... b5 {[%clk 0:01:26.4]} 25. Ne3
{[%clk 0:01:27.7]} 25... Qb6 {[%clk 0:01:18.1]} 26. Nd5 {[%clk 0:01:26.9]} 26...
Qxa6 {[%clk 0:01:12.6]} 27. Nxe7 {[%clk 0:01:19.9]} 27... Nxe7 {[%clk 0:01:13]}
28. Nxe5 {[%clk 0:01:19.8]} 28... Qe6 {[%clk 0:01:10.9]} 29. f4 {[%clk
0:01:16.6]} 29... Qxb3 {[%clk 0:01:09.7]} 30. Qd6 {[%clk 0:01:03.4]} 30... Qe6
{[%clk 0:01:05.3]} 31. Qxc5 {[%clk 0:01:01.8]} 31... Nxe4 {[%clk 0:01:05.7]} 32.
Qxa7 {[%clk 0:00:56.9]} 32... Qd5 {[%clk 0:00:56.2]} 33. Qxe7 {[%clk 0:00:48.3]}
1-0

[Event "*** SCC Grand Prix: Titled Tuesday Blitz"]
[Site "Chess.com"]
[Date "2020.09.08"]
[Round "9"]
[White "Beltraxtor"]
[Black "ARTHURMOTIVATOR"]
[Result "1-0"]
[WhiteElo "2593"]
[BlackElo "2377"]
[TimeControl "180+1"]
[EndTime "11:45:30 PDT"]
[Termination "Beltraxtor won by resignation"]

1. e4 {[%clk 0:03:00.9]} 1... c6 {[%clk 0:02:55.9]} 2. d4 {[%clk 0:02:58]} 2...
d5 {[%clk 0:02:55.4]} 3. Nd2 {[%clk 0:02:58.4]} 3... dxe4 {[%clk 0:02:55.4]} 4.
Nxe4 {[%clk 0:02:59.3]} 4... Nf6 {[%clk 0:02:56]} 5. Nxf6+ {[%clk 0:02:59]} 5...
gxf6 {[%clk 0:02:56.4]} 6. c3 {[%clk 0:02:59.9]} 6... h5 {[%clk 0:02:55.9]} 7.
Bf4 {[%clk 0:02:58.3]} 7... Bg4 {[%clk 0:02:47]} 8. Nf3 {[%clk 0:02:56.7]} 8...
e6 {[%clk 0:02:41.2]} 9. Be2 {[%clk 0:02:52.8]} 9... Bd6 {[%clk 0:02:36.7]} 10.
Qd2 {[%clk 0:02:51.6]} 10... Bxf4 {[%clk 0:02:27.8]} 11. Qxf4 {[%clk 0:02:52.5]}
11... Nd7 {[%clk 0:02:26.5]} 12. O-O {[%clk 0:02:48.7]} 12... Qb8 {[%clk
0:02:19.1]} 13. Qe3 {[%clk 0:02:45.3]} 13... Qc7 {[%clk 0:02:14.2]} 14. Rfe1
{[%clk 0:02:44.7]} 14... O-O-O {[%clk 0:02:12.3]} 15. Rad1 {[%clk 0:02:38.1]}
15... Rhg8 {[%clk 0:01:49.8]} 16. Nd2 {[%clk 0:02:14.8]} 16... Nb6 {[%clk
0:01:41.6]} 17. Qg3 {[%clk 0:01:46.4]} 17... e5 {[%clk 0:01:25.1]} 18. Bxg4+
{[%clk 0:01:25.6]} 18... Rxg4 {[%clk 0:01:23.1]} 19. Qh3 {[%clk 0:01:25.5]}
19... exd4 {[%clk 0:01:15.6]} 20. f3 {[%clk 0:01:20.4]} 20... dxc3 {[%clk
0:01:09.5]} 21. bxc3 {[%clk 0:01:16.8]} 21... Qf4 {[%clk 0:01:00.8]} 22. fxg4
{[%clk 0:01:09.4]} 22... Rxd2 {[%clk 0:00:58.8]} 23. Rxd2 {[%clk 0:01:03.4]}
23... Qxd2 {[%clk 0:00:57.1]} 24. gxh5+ {[%clk 0:01:03.1]} 24... Kd8 {[%clk
0:00:46.5]} 25. Qe3 {[%clk 0:00:53.8]} 25... Qd7 {[%clk 0:00:44.9]} 26. h6
{[%clk 0:00:48.4]} 26... Nd5 {[%clk 0:00:44.8]} 27. Qe8+ {[%clk 0:00:47]} 1-0

[Event "*** SCC Grand Prix: Titled Tuesday Blitz"]
[Site "Chess.com"]
[Date "2020.09.08"]
[Round "9"]
[White "Resignify"]
[Black "WiktoriaPOL"]
[Result "1-0"]
[WhiteElo "2221"]
[BlackElo "1970"]
[TimeControl "180+1"]
[EndTime "11:45:32 PDT"]
[Termination "Resignify won by checkmate"]

1. e4 {[%clk 0:03:00.9]} 1... c5 {[%clk 0:02:59]} 2. Nc3 {[%clk 0:02:59.9]} 2...
a6 {[%clk 0:02:58.4]} 3. g3 {[%clk 0:03:00]} 3... b5 {[%clk 0:02:57.6]} 4. Bg2
{[%clk 0:03:00.2]} 4... Bb7 {[%clk 0:02:58]} 5. d3 {[%clk 0:02:58.7]} 5... g6
{[%clk 0:02:57.2]} 6. f4 {[%clk 0:02:57.3]} 6... Bg7 {[%clk 0:02:57.4]} 7. Nf3
{[%clk 0:02:56.1]} 7... Nc6 {[%clk 0:02:57.5]} 8. O-O {[%clk 0:02:54.7]} 8... e6
{[%clk 0:02:58.1]} 9. e5 {[%clk 0:02:52]} 9... d6 {[%clk 0:02:57]} 10. exd6
{[%clk 0:02:50.7]} 10... Qxd6 {[%clk 0:02:56.6]} 11. Ne4 {[%clk 0:02:50.7]}
11... Qe7 {[%clk 0:02:54.8]} 12. c3 {[%clk 0:02:44.3]} 12... Nf6 {[%clk
0:02:53.6]} 13. Qe2 {[%clk 0:02:23.2]} 13... O-O {[%clk 0:02:50.4]} 14. Be3
{[%clk 0:02:16]} 14... Nxe4 {[%clk 0:02:49.4]} 15. dxe4 {[%clk 0:02:16.9]} 15...
c4 {[%clk 0:02:48.2]} 16. Rfd1 {[%clk 0:02:11.1]} 16... Rfd8 {[%clk 0:02:45.8]}
17. e5 {[%clk 0:02:07.8]} 17... f6 {[%clk 0:02:41.8]} 18. exf6 {[%clk 0:02:03]}
18... Bxf6 {[%clk 0:02:41.1]} 19. Bb6 {[%clk 0:01:58.4]} 19... Rxd1+ {[%clk
0:02:37.8]} 20. Rxd1 {[%clk 0:01:59.2]} 20... e5 {[%clk 0:02:25.2]} 21. Nxe5
{[%clk 0:01:43.9]} 21... Bxe5 {[%clk 0:02:20]} 22. Bd5+ {[%clk 0:01:01.3]} 22...
Kh8 {[%clk 0:02:08.5]} 23. fxe5 {[%clk 0:01:00.6]} 23... Re8 {[%clk 0:01:32.8]}
24. e6 {[%clk 0:00:42.8]} 24... Nd8 {[%clk 0:01:06]} 25. Bd4+ {[%clk 0:00:32.7]}
25... Kg8 {[%clk 0:01:05]} 26. Qe5 {[%clk 0:00:30]} 26... Nxe6 {[%clk
0:00:54.9]} 27. Bxe6+ {[%clk 0:00:26.6]} 27... Qxe6 {[%clk 0:00:54]} 28. Qg7#
{[%clk 0:00:26.1]} 1-0

[Event "*** SCC Grand Prix: Titled Tuesday Blitz"]
[Site "Chess.com"]
[Date "2020.09.08"]
[Round "9"]
[White "hellokostya"]
[Black "abykhovsky"]
[Result "1-0"]
[WhiteElo "2510"]
[BlackElo "2633"]
[TimeControl "180+1"]
[EndTime "11:45:33 PDT"]
[Termination "hellokostya won by resignation"]

1. d4 {[%clk 0:03:00.8]} 1... Nf6 {[%clk 0:02:59.8]} 2. c4 {[%clk 0:03:00.5]}
2... c5 {[%clk 0:02:59.7]} 3. d5 {[%clk 0:03:00.4]} 3... b5 {[%clk 0:03:00.3]}
4. Qc2 {[%clk 0:02:59.7]} 4... b4 {[%clk 0:03:00.5]} 5. e4 {[%clk 0:02:58.8]}
5... g6 {[%clk 0:03:01.1]} 6. Nf3 {[%clk 0:02:52.3]} 6... Bg7 {[%clk 0:03:01.2]}
7. h3 {[%clk 0:02:45.3]} 7... O-O {[%clk 0:03:00.9]} 8. Be2 {[%clk 0:02:40.3]}
8... a5 {[%clk 0:02:59]} 9. O-O {[%clk 0:02:39.8]} 9... d6 {[%clk 0:02:58]} 10.
Re1 {[%clk 0:02:38.4]} 10... a4 {[%clk 0:02:57.5]} 11. Bf4 {[%clk 0:02:31]}
11... a3 {[%clk 0:02:39.9]} 12. e5 {[%clk 0:02:22.9]} 12... axb2 {[%clk
0:02:35.7]} 13. Qxb2 {[%clk 0:02:21.4]} 13... Nfd7 {[%clk 0:02:11.2]} 14. Nbd2
{[%clk 0:02:18.3]} 14... Nb6 {[%clk 0:01:47.3]} 15. Qc2 {[%clk 0:02:12.8]} 15...
Ra3 {[%clk 0:01:32.7]} 16. Nb3 {[%clk 0:02:06.3]} 16... N8d7 {[%clk 0:00:41.7]}
17. Bd3 {[%clk 0:02:03.3]} 17... dxe5 {[%clk 0:00:32.4]} 18. Nxe5 {[%clk
0:02:02.9]} 18... Nxe5 {[%clk 0:00:32.7]} 19. Bxe5 {[%clk 0:02:03.8]} 19... Bxe5
{[%clk 0:00:33]} 20. Rxe5 {[%clk 0:02:04.5]} 20... Qd6 {[%clk 0:00:33.9]} 21.
Rae1 {[%clk 0:02:04]} 21... Na4 {[%clk 0:00:34.4]} 22. Rxe7 {[%clk 0:01:58.6]}
22... Nc3 {[%clk 0:00:33.1]} 23. Nc1 {[%clk 0:01:55]} 23... Bd7 {[%clk
0:00:32.3]} 24. Qd2 {[%clk 0:01:52.3]} 24... Rfa8 {[%clk 0:00:28.8]} 25. Qh6
{[%clk 0:01:51.2]} 25... Nxa2 {[%clk 0:00:25.9]} 26. Rxf7 {[%clk 0:01:42.6]}
26... Kxf7 {[%clk 0:00:20.7]} 27. Qxh7+ {[%clk 0:01:42.1]} 27... Kf8 {[%clk
0:00:21.3]} 28. Bxg6 {[%clk 0:01:18]} 28... Qf6 {[%clk 0:00:21]} 29. Re7 {[%clk
0:01:17.8]} 29... Be8 {[%clk 0:00:19.4]} 30. Re6 {[%clk 0:01:07.3]} 30... Bxg6
{[%clk 0:00:18.5]} 31. Rxf6+ {[%clk 0:01:06.9]} 1-0

[Event "*** SCC Grand Prix: Titled Tuesday Blitz"]
[Site "Chess.com"]
[Date "2020.09.08"]
[Round "9"]
[White "MashaFromRussia"]
[Black "chessmadara"]
[Result "1-0"]
[WhiteElo "2364"]
[BlackElo "1971"]
[TimeControl "180+1"]
[EndTime "11:45:34 PDT"]
[Termination "MashaFromRussia won by resignation"]

1. d4 {[%clk 0:02:54.1]} 1... Nf6 {[%clk 0:02:59]} 2. c4 {[%clk 0:02:52.3]} 2...
g6 {[%clk 0:02:59]} 3. Nf3 {[%clk 0:02:50.7]} 3... Bg7 {[%clk 0:02:58.6]} 4. g3
{[%clk 0:02:51.2]} 4... O-O {[%clk 0:02:57.5]} 5. Bg2 {[%clk 0:02:51.6]} 5... c5
{[%clk 0:02:57.6]} 6. d5 {[%clk 0:02:51.3]} 6... e6 {[%clk 0:02:55.9]} 7. Nc3
{[%clk 0:02:51]} 7... exd5 {[%clk 0:02:54.8]} 8. cxd5 {[%clk 0:02:51.9]} 8... d6
{[%clk 0:02:54.6]} 9. O-O {[%clk 0:02:51.2]} 9... Re8 {[%clk 0:02:51.3]} 10. Nd2
{[%clk 0:02:50.4]} 10... a6 {[%clk 0:02:49.9]} 11. a4 {[%clk 0:02:49.9]} 11...
Nbd7 {[%clk 0:02:44.9]} 12. h3 {[%clk 0:02:49.8]} 12... b6 {[%clk 0:02:28.6]}
13. Nc4 {[%clk 0:02:42.5]} 13... Nf8 {[%clk 0:02:26.5]} 14. e4 {[%clk
0:02:39.8]} 14... Rb8 {[%clk 0:02:17.8]} 15. Bf4 {[%clk 0:02:37.6]} 15... Nh5
{[%clk 0:01:33.7]} 16. Bxd6 {[%clk 0:02:36.5]} 16... Rb7 {[%clk 0:01:34]} 17. e5
{[%clk 0:02:29.4]} 17... b5 {[%clk 0:01:28.2]} 18. axb5 {[%clk 0:02:29.6]} 18...
axb5 {[%clk 0:01:28.3]} 19. Na5 {[%clk 0:02:30.1]} 19... Rb6 {[%clk 0:01:26.3]}
20. Bxc5 {[%clk 0:02:28.5]} 20... Ra6 {[%clk 0:01:18.9]} 21. Nc6 {[%clk
0:02:21.1]} 21... Qd7 {[%clk 0:01:19.1]} 22. Rxa6 {[%clk 0:02:02.7]} 22... Bxa6
{[%clk 0:01:11.4]} 23. e6 {[%clk 0:01:59.9]} 23... fxe6 {[%clk 0:01:09.6]} 24.
Bxf8 {[%clk 0:01:59]} 24... Bxf8 {[%clk 0:01:03.3]} 25. dxe6 {[%clk 0:01:58.9]}
25... Qc7 {[%clk 0:00:56.9]} 26. e7 {[%clk 0:01:48.2]} 26... Bh6 {[%clk
0:00:55.2]} 27. Qd4 {[%clk 0:01:36.2]} 27... Bg7 {[%clk 0:00:53.5]} 28. Qd5+
{[%clk 0:01:29]} 28... Kh8 {[%clk 0:00:53.2]} 29. Ne4 {[%clk 0:01:29.3]} 29...
Bb7 {[%clk 0:00:24.3]} 30. Ng5 {[%clk 0:01:28.7]} 30... Bf6 {[%clk 0:00:20]} 31.
Qf7 {[%clk 0:01:24.6]} 31... Ng7 {[%clk 0:00:18.5]} 32. Qxf6 {[%clk 0:01:21.8]}
1-0

[Event "*** SCC Grand Prix: Titled Tuesday Blitz"]
[Site "Chess.com"]
[Date "2020.09.08"]
[Round "9"]
[White "AntonovaNadezhda"]
[Black "The_Machine04"]
[Result "0-1"]
[WhiteElo "2065"]
[BlackElo "2270"]
[TimeControl "180+1"]
[EndTime "11:45:34 PDT"]
[Termination "The_Machine04 won by checkmate"]

1. d4 {[%clk 0:03:00.9]} 1... d6 {[%clk 0:03:00.9]} 2. Nf3 {[%clk 0:03:00.3]}
2... Nf6 {[%clk 0:03:00.8]} 3. Nbd2 {[%clk 0:02:57.7]} 3... Bf5 {[%clk
0:02:58.9]} 4. e3 {[%clk 0:02:53.6]} 4... g6 {[%clk 0:02:58.8]} 5. Be2 {[%clk
0:02:47.3]} 5... Bg7 {[%clk 0:02:58.4]} 6. O-O {[%clk 0:02:47.3]} 6... O-O
{[%clk 0:02:57.7]} 7. b4 {[%clk 0:02:44]} 7... Nc6 {[%clk 0:02:56.6]} 8. c3
{[%clk 0:02:33.8]} 8... a6 {[%clk 0:02:53.2]} 9. Bb2 {[%clk 0:02:32.7]} 9... e5
{[%clk 0:02:51.2]} 10. a3 {[%clk 0:02:14.9]} 10... e4 {[%clk 0:02:47.6]} 11. Ne1
{[%clk 0:02:04.1]} 11... d5 {[%clk 0:02:47.1]} 12. c4 {[%clk 0:02:00.5]} 12...
h5 {[%clk 0:02:38.9]} 13. Qb3 {[%clk 0:01:54.1]} 13... Ne7 {[%clk 0:02:37.2]}
14. c5 {[%clk 0:01:49.3]} 14... c6 {[%clk 0:02:32.8]} 15. a4 {[%clk 0:01:48.7]}
15... Ng4 {[%clk 0:02:31.5]} 16. g3 {[%clk 0:01:43.1]} 16... Nf6 {[%clk
0:02:20.9]} 17. Ng2 {[%clk 0:01:42]} 17... Nh7 {[%clk 0:02:19.2]} 18. h4 {[%clk
0:01:31]} 18... Bg4 {[%clk 0:02:06.9]} 19. Bxg4 {[%clk 0:01:24.2]} 19... hxg4
{[%clk 0:02:07.8]} 20. Qd1 {[%clk 0:01:15.6]} 20... f5 {[%clk 0:02:03.4]} 21.
Nf4 {[%clk 0:01:08.9]} 21... Kf7 {[%clk 0:01:59.6]} 22. Kg2 {[%clk 0:01:01.4]}
22... g5 {[%clk 0:01:58.6]} 23. hxg5 {[%clk 0:00:59.4]} 23... Nxg5 {[%clk
0:01:59.5]} 24. Rh1 {[%clk 0:00:56.6]} 24... Rh8 {[%clk 0:01:58.9]} 25. Qb3
{[%clk 0:00:56]} 25... Nf3 {[%clk 0:01:50.2]} 26. Qc2 {[%clk 0:00:47.4]} 26...
Ng6 {[%clk 0:01:40.8]} 27. Rxh8 {[%clk 0:00:31.8]} 27... Qxh8 {[%clk 0:01:26.7]}
28. Rh1 {[%clk 0:00:28.9]} 28... Qxh1+ {[%clk 0:01:16]} 29. Kxh1 {[%clk
0:00:26.7]} 29... Rh8+ {[%clk 0:01:15.9]} 30. Kg2 {[%clk 0:00:17.1]} 30... Rh2+
{[%clk 0:01:16.3]} 31. Kf1 {[%clk 0:00:16.2]} 31... Rh1+ {[%clk 0:01:16.7]} 32.
Ke2 {[%clk 0:00:13.7]} 32... Re1# {[%clk 0:01:16.4]} 0-1